[Event "*** Titled Tuesday Blitz"]
[Site "Chess.com"]
[Date "2019.09.03"]
[Round "2"]
[White "pedro_gines"]
[Black "1random"]
[Result "0-1"]
[WhiteElo "2523"]
[BlackElo "2758"]
[TimeControl "180+2"]
[EndTime "15:26:17 PDT"]
[Termination "1random won by checkmate"]

1. d4 {[%clk 0:03:01.9]} 1... Nf6 {[%clk 0:03:00.8]} 2. Nf3 {[%clk 0:03:01.4]}
2... d5 {[%clk 0:03:02.2]} 3. c4 {[%clk 0:03:01.8]} 3... e6 {[%clk 0:03:03.6]}
4. g3 {[%clk 0:03:02]} 4... Be7 {[%clk 0:03:03.8]} 5. Bg2 {[%clk 0:03:03]} 5...
O-O {[%clk 0:03:05.2]} 6. O-O {[%clk 0:03:04.5]} 6... dxc4 {[%clk 0:03:06.7]} 7.
Qc2 {[%clk 0:03:05.7]} 7... c6 {[%clk 0:03:07.6]} 8. Qxc4 {[%clk 0:03:05.2]}
8... b5 {[%clk 0:03:08.8]} 9. Qc2 {[%clk 0:03:04]} 9... Bb7 {[%clk 0:03:10.4]}
10. Nbd2 {[%clk 0:03:01.3]} 10... c5 {[%clk 0:02:48]} 11. dxc5 {[%clk
0:02:54.3]} 11... Na6 {[%clk 0:02:49.5]} 12. c6 {[%clk 0:02:51.6]} 12... Nb4
{[%clk 0:02:36.6]} 13. cxb7 {[%clk 0:01:32.5]} 13... Nxc2 {[%clk 0:02:37.2]} 14.
bxa8=Q {[%clk 0:01:29.7]} 14... Qxa8 {[%clk 0:02:37]} 15. Nd4 {[%clk 0:01:30.5]}
15... Qc8 {[%clk 0:02:13.6]} 16. Nc6 {[%clk 0:01:18.8]} 16... Bc5 {[%clk
0:02:08.3]} 17. Nb3 {[%clk 0:01:07.2]} 17... Nxa1 {[%clk 0:01:58.4]} 18. Nxc5
{[%clk 0:01:07.9]} 18... Qc7 {[%clk 0:01:10.1]} 19. Bf4 {[%clk 0:01:02.3]} 19...
Qb6 {[%clk 0:01:10.7]} 20. Bd6 {[%clk 0:01:02.9]} 20... Nc2 {[%clk 0:01:00]} 21.
Rc1 {[%clk 0:00:42.8]} 21... Nd4 {[%clk 0:00:42.7]} 22. Nxd4 {[%clk 0:00:23.3]}
22... Qxd6 {[%clk 0:00:43.8]} 23. e3 {[%clk 0:00:24.4]} 23... Rc8 {[%clk
0:00:31.6]} 24. b4 {[%clk 0:00:24.7]} 24... Nd5 {[%clk 0:00:28]} 25. a3 {[%clk
0:00:24.4]} 25... a5 {[%clk 0:00:29.3]} 26. Nxb5 {[%clk 0:00:25.1]} 26... Qb6
{[%clk 0:00:28.1]} 27. Bf1 {[%clk 0:00:17.7]} 27... axb4 {[%clk 0:00:27.9]} 28.
axb4 {[%clk 0:00:05.8]} 28... Nxb4 {[%clk 0:00:28.6]} 29. Nd7 {[%clk 0:00:05.8]}
29... Qd8 {[%clk 0:00:21.4]} 30. Rxc8 {[%clk 0:00:06.9]} 30... Qxc8 {[%clk
0:00:23.3]} 31. Ne5 {[%clk 0:00:06.7]} 31... Qc5 {[%clk 0:00:19.6]} 32. Nf3
{[%clk 0:00:07]} 32... Nd5 {[%clk 0:00:20.2]} 33. Nbd4 {[%clk 0:00:07.7]} 33...
Nc3 {[%clk 0:00:18.2]} 34. h4 {[%clk 0:00:08.3]} 34... e5 {[%clk 0:00:17.3]} 35.
Nf5 {[%clk 0:00:07.3]} 35... g6 {[%clk 0:00:14.9]} 36. Nh6+ {[%clk 0:00:08.3]}
36... Kg7 {[%clk 0:00:16.6]} 37. Ng4 {[%clk 0:00:08.8]} 37... f6 {[%clk
0:00:09.5]} 38. Ngh2 {[%clk 0:00:05.2]} 38... h5 {[%clk 0:00:10.4]} 39. Ne1
{[%clk 0:00:05.7]} 39... Qd5 {[%clk 0:00:10.5]} 40. Nd3 {[%clk 0:00:05.5]} 40...
Ne4 {[%clk 0:00:08.7]} 41. Be2 {[%clk 0:00:02.4]} 41... Nd2 {[%clk 0:00:09.6]}
42. Nf1 {[%clk 0:00:02.8]} 42... Nf3+ {[%clk 0:00:10.3]} 43. Bxf3 {[%clk
0:00:04.3]} 43... Qxf3 {[%clk 0:00:12.2]} 44. Ne1 {[%clk 0:00:06]} 44... Qe2
{[%clk 0:00:13.3]} 45. Ng2 {[%clk 0:00:06.2]} 45... Kh6 {[%clk 0:00:14.3]} 46.
Nh2 {[%clk 0:00:06.1]} 46... g5 {[%clk 0:00:14]} 47. hxg5+ {[%clk 0:00:05]}
47... fxg5 {[%clk 0:00:15.9]} 48. Nf1 {[%clk 0:00:06.4]} 48... Qd1 {[%clk
0:00:13.7]} 49. e4 {[%clk 0:00:05.3]} 49... Kg7 {[%clk 0:00:09.8]} 50. Ne3
{[%clk 0:00:06.3]} 50... Qf3 {[%clk 0:00:09]} 51. Nd2 {[%clk 0:00:07]} 51... Qe2
{[%clk 0:00:10.3]} 52. Ndc4 {[%clk 0:00:07]} 52... Qe1+ {[%clk 0:00:09.3]} 53.
Kg2 {[%clk 0:00:07.8]} 53... Qc3 {[%clk 0:00:11]} 54. Nd6 {[%clk 0:00:08.4]}
54... Kh7 {[%clk 0:00:07.4]} 55. Nf7 {[%clk 0:00:07.7]} 55... g4 {[%clk
0:00:07]} 56. Nd6 {[%clk 0:00:05.1]} 56... Qd4 {[%clk 0:00:06.9]} 57. Nef5
{[%clk 0:00:06.6]} 57... Qd1 {[%clk 0:00:06.5]} 58. Kh2 {[%clk 0:00:06]} 58...
Qf1 {[%clk 0:00:06.5]} 59. Nh4 {[%clk 0:00:04.4]} 59... Qxf2+ {[%clk 0:00:07.9]}
60. Ng2 {[%clk 0:00:05.8]} 60... Kg6 {[%clk 0:00:08]} 61. Nf5 {[%clk 0:00:06.7]}
61... Kg5 {[%clk 0:00:08.9]} 62. Nd6 {[%clk 0:00:05.9]} 62... Qe2 {[%clk
0:00:09.4]} 63. Nf7+ {[%clk 0:00:05.8]} 63... Kf6 {[%clk 0:00:10.2]} 64. Nd6
{[%clk 0:00:06.6]} 64... Qd3 {[%clk 0:00:11]} 65. Nf5 {[%clk 0:00:04.7]} 65...
Qxe4 {[%clk 0:00:11.4]} 66. Nfe3 {[%clk 0:00:06.3]} 66... Qf3 {[%clk 0:00:11.9]}
67. Nc4 {[%clk 0:00:04.8]} 67... e4 {[%clk 0:00:12.8]} 68. Nce3 {[%clk
0:00:03.4]} 68... Qf2 {[%clk 0:00:13.6]} 69. Nd5+ {[%clk 0:00:03.1]} 69... Ke5
{[%clk 0:00:15.1]} 70. Nf4 {[%clk 0:00:04.1]} 70... e3 {[%clk 0:00:14.5]} 71.
Nd3+ {[%clk 0:00:05.4]} 71... Ke4 {[%clk 0:00:11.8]} 72. Nc5+ {[%clk 0:00:02.2]}
72... Kf3 {[%clk 0:00:12.6]} 73. Ne6 {[%clk 0:00:03.1]} 73... Qxg2# {[%clk
0:00:14]} 0-1

[Event "*** Titled Tuesday Blitz"]
[Site "Chess.com"]
[Date "2019.09.03"]
[Round "3"]
[White "FranciscodelaF"]
[Black "adriangschnitzer"]
[Result "0-1"]
[WhiteElo "2274"]
[BlackElo "2550"]
[TimeControl "180+2"]
[EndTime "15:32:30 PDT"]
[Termination "adriangschnitzer won by checkmate"]

1. d4 {[%clk 0:03:01.9]} 1... Nf6 {[%clk 0:03:00.3]} 2. c4 {[%clk 0:03:03.1]}
2... c5 {[%clk 0:03:01.6]} 3. d5 {[%clk 0:03:03.2]} 3... b5 {[%clk 0:03:02.6]}
4. Qc2 {[%clk 0:03:00.8]} 4... b4 {[%clk 0:03:02.6]} 5. e4 {[%clk 0:02:55.9]}
5... d6 {[%clk 0:03:01.2]} 6. a3 {[%clk 0:02:52.6]} 6... a5 {[%clk 0:02:57.1]}
7. a4 {[%clk 0:02:49.8]} 7... g6 {[%clk 0:02:58]} 8. b3 {[%clk 0:02:51.2]} 8...
Bg7 {[%clk 0:02:59]} 9. Bb2 {[%clk 0:02:53.1]} 9... O-O {[%clk 0:02:59.7]} 10.
Nd2 {[%clk 0:02:54]} 10... e5 {[%clk 0:03:00.2]} 11. dxe6 {[%clk 0:02:51.2]}
11... fxe6 {[%clk 0:03:02.1]} 12. Ngf3 {[%clk 0:02:51.5]} 12... e5 {[%clk
0:03:02.2]} 13. Be2 {[%clk 0:02:51.1]} 13... Nc6 {[%clk 0:03:03.4]} 14. O-O
{[%clk 0:02:51.4]} 14... Nh5 {[%clk 0:03:03.5]} 15. Rfe1 {[%clk 0:02:50.2]}
15... Nf4 {[%clk 0:03:04.1]} 16. Bf1 {[%clk 0:02:51.7]} 16... Nd4 {[%clk
0:03:03.2]} 17. Bxd4 {[%clk 0:02:51.1]} 17... exd4 {[%clk 0:03:01.6]} 18. Rad1
{[%clk 0:02:39.8]} 18... Bg4 {[%clk 0:02:52.6]} 19. h3 {[%clk 0:02:39.2]} 19...
Nxh3+ {[%clk 0:02:51.8]} 20. gxh3 {[%clk 0:02:40.2]} 20... Bxf3 {[%clk
0:02:52.5]} 21. Nxf3 {[%clk 0:02:41.7]} 21... Rxf3 {[%clk 0:02:54.4]} 22. Bg2
{[%clk 0:02:42.2]} 22... Qg5 {[%clk 0:02:48.4]} 23. Kh1 {[%clk 0:02:40.2]} 23...
Raf8 {[%clk 0:02:47.1]} 24. Bxf3 {[%clk 0:02:31.9]} 24... Rxf3 {[%clk
0:02:47.8]} 25. Rg1 {[%clk 0:02:33.4]} 25... Rxh3# {[%clk 0:02:47.6]} 0-1

[Event "*** Titled Tuesday Blitz"]
[Site "Chess.com"]
[Date "2019.09.03"]
[Round "3"]
[White "minnesotachessmaster"]
[Black "saraswathii"]
[Result "1/2-1/2"]
[WhiteElo "1951"]
[BlackElo "2290"]
[TimeControl "180+2"]
[EndTime "15:33:17 PDT"]
[Termination "Game drawn by agreement"]

1. e4 {[%clk 0:02:56]} 1... c5 {[%clk 0:03:00.2]} 2. Nf3 {[%clk 0:02:52.9]} 2...
e6 {[%clk 0:03:01.2]} 3. d4 {[%clk 0:02:53.2]} 3... cxd4 {[%clk 0:03:03.1]} 4.
Nxd4 {[%clk 0:02:54]} 4... Nf6 {[%clk 0:03:04.2]} 5. Nc3 {[%clk 0:02:54.3]} 5...
Nc6 {[%clk 0:03:05.2]} 6. Nxc6 {[%clk 0:02:54.1]} 6... bxc6 {[%clk 0:03:06.2]}
7. e5 {[%clk 0:02:55.2]} 7... Nd5 {[%clk 0:03:07.4]} 8. Ne4 {[%clk 0:02:55.6]}
8... f5 {[%clk 0:03:03.6]} 9. exf6 {[%clk 0:02:53.3]} 9... Nxf6 {[%clk
0:03:04.1]} 10. Bd3 {[%clk 0:02:50.9]} 10... d5 {[%clk 0:03:03.7]} 11. Nxf6+
{[%clk 0:02:50.7]} 11... Qxf6 {[%clk 0:03:03.8]} 12. O-O {[%clk 0:02:51.5]}
12... Bd6 {[%clk 0:03:03.6]} 13. f4 {[%clk 0:02:50.4]} 13... O-O {[%clk
0:03:03.5]} 14. Kh1 {[%clk 0:02:41.6]} 14... c5 {[%clk 0:03:02.8]} 15. c3 {[%clk
0:02:40.8]} 15... Bb7 {[%clk 0:03:02.4]} 16. Qf3 {[%clk 0:02:37.6]} 16... Rf7
{[%clk 0:02:59.6]} 17. Bd2 {[%clk 0:02:31.6]} 17... Rd8 {[%clk 0:02:55.1]} 18.
Rae1 {[%clk 0:02:28.6]} 18... Rdf8 {[%clk 0:02:37.2]} 19. Qh3 {[%clk 0:02:27.2]}
19... g6 {[%clk 0:02:25.1]} 20. Rxe6 {[%clk 0:02:26.2]} 20... Qd8 {[%clk
0:02:24.1]} 21. Bxg6 {[%clk 0:02:13.3]} 21... hxg6 {[%clk 0:02:19.6]} 22. Rxg6+
{[%clk 0:02:13.5]} 22... Rg7 {[%clk 0:02:19.2]} 23. Qe6+ {[%clk 0:02:10.8]}
23... Rf7 {[%clk 0:02:18.2]} 24. Qxd6 {[%clk 0:02:07.8]} 1/2-1/2

[Event "*** Titled Tuesday Blitz"]
[Site "Chess.com"]
[Date "2019.09.03"]
[Round "3"]
[White "MFguimaraes"]
[Black "newauto"]
[Result "1-0"]
[WhiteElo "2297"]
[BlackElo "1923"]
[TimeControl "180+2"]
[EndTime "15:34:04 PDT"]
[Termination "MFguimaraes won by resignation"]

1. e4 {[%clk 0:03:01.9]} 1... c6 {[%clk 0:03:01.9]} 2. d4 {[%clk 0:03:02.5]}
2... d5 {[%clk 0:03:01.7]} 3. exd5 {[%clk 0:03:03]} 3... cxd5 {[%clk 0:02:58.7]}
4. Bd3 {[%clk 0:03:04.2]} 4... Nc6 {[%clk 0:02:58]} 5. c3 {[%clk 0:03:05.2]}
5... Nf6 {[%clk 0:02:57.4]} 6. h3 {[%clk 0:03:06.2]} 6... e5 {[%clk 0:02:55.8]}
7. dxe5 {[%clk 0:03:06.7]} 7... Nxe5 {[%clk 0:02:55.8]} 8. Qe2 {[%clk
0:03:06.8]} 8... Qe7 {[%clk 0:02:51.6]} 9. Bb5+ {[%clk 0:03:07.5]} 9... Bd7
{[%clk 0:02:51.2]} 10. Be3 {[%clk 0:03:01.5]} 10... Nc4 {[%clk 0:02:43.5]} 11.
Bxd7+ {[%clk 0:02:51.6]} 11... Nxd7 {[%clk 0:02:40.7]} 12. Nd2 {[%clk
0:02:48.8]} 12... Nxe3 {[%clk 0:02:38.8]} 13. fxe3 {[%clk 0:02:47.9]} 13...
O-O-O {[%clk 0:02:34]} 14. O-O-O {[%clk 0:02:46.5]} 14... Kb8 {[%clk 0:02:34.5]}
15. Ngf3 {[%clk 0:02:47.6]} 15... Nf6 {[%clk 0:02:28.7]} 16. e4 {[%clk
0:02:42.3]} 16... dxe4 {[%clk 0:02:21.1]} 17. Ng5 {[%clk 0:02:33.1]} 17... e3
{[%clk 0:02:13.5]} 18. Nc4 {[%clk 0:02:34]} 18... h6 {[%clk 0:02:07.8]} 19.
Rxd8+ {[%clk 0:02:33.3]} 19... Qxd8 {[%clk 0:02:07.6]} 20. Nxf7 {[%clk
0:02:33.6]} 20... Qc7 {[%clk 0:02:06.7]} 21. Nxh8 {[%clk 0:02:33.6]} 21... Bc5
{[%clk 0:02:05.9]} 22. Nxe3 {[%clk 0:02:30.9]} 22... Qe5 {[%clk 0:02:00]} 23.
Re1 {[%clk 0:02:29.7]} 23... g5 {[%clk 0:01:57.7]} 24. Nf7 {[%clk 0:02:17.9]}
24... Qe6 {[%clk 0:01:57.4]} 25. Nd8 {[%clk 0:02:16.8]} 25... Qxa2 {[%clk
0:01:57.4]} 26. Nc4 {[%clk 0:02:11]} 26... a6 {[%clk 0:01:43.1]} 27. Qe5+ {[%clk
0:02:10.3]} 1-0

[Event "*** Titled Tuesday Blitz"]
[Site "Chess.com"]
[Date "2019.09.03"]
[Round "3"]
[White "Jenia84"]
[Black "Iustin106"]
[Result "1/2-1/2"]
[WhiteElo "2254"]
[BlackElo "2491"]
[TimeControl "180+2"]
[EndTime "15:34:13 PDT"]
[Termination "Game drawn by repetition"]

1. e4 {[%clk 0:03:01.7]} 1... e6 {[%clk 0:03:01]} 2. d4 {[%clk 0:03:01.8]} 2...
d5 {[%clk 0:03:02]} 3. Bd3 {[%clk 0:03:02.2]} 3... c5 {[%clk 0:02:59.9]} 4. exd5
{[%clk 0:03:00.8]} 4... exd5 {[%clk 0:03:01.8]} 5. c3 {[%clk 0:02:58.4]} 5...
Nc6 {[%clk 0:02:53.9]} 6. Nf3 {[%clk 0:02:57.4]} 6... cxd4 {[%clk 0:02:52.7]} 7.
Nxd4 {[%clk 0:02:56.4]} 7... Nxd4 {[%clk 0:02:52.9]} 8. cxd4 {[%clk 0:02:57.1]}
8... Bd6 {[%clk 0:02:50.9]} 9. Nc3 {[%clk 0:02:57]} 9... Ne7 {[%clk 0:02:52.2]}
10. O-O {[%clk 0:02:56.9]} 10... O-O {[%clk 0:02:52.9]} 11. Bg5 {[%clk
0:02:53.2]} 11... h6 {[%clk 0:02:48.4]} 12. Qh5 {[%clk 0:02:47.5]} 12... Be6
{[%clk 0:02:41.3]} 13. Rae1 {[%clk 0:02:18.9]} 13... Qd7 {[%clk 0:02:33.5]} 14.
Bxh6 {[%clk 0:02:00.3]} 14... gxh6 {[%clk 0:02:33.6]} 15. Qxh6 {[%clk
0:01:57.6]} 15... Nf5 {[%clk 0:02:19.9]} 16. Bxf5 {[%clk 0:01:56]} 16... Bxf5
{[%clk 0:02:21.8]} 17. Qg5+ {[%clk 0:01:51.1]} 17... Bg6 {[%clk 0:02:18.6]} 18.
Nxd5 {[%clk 0:01:50.6]} 18... Qf5 {[%clk 0:02:15.6]} 19. Nf6+ {[%clk 0:01:47.2]}
19... Kg7 {[%clk 0:02:07.1]} 20. Nh5+ {[%clk 0:01:45.7]} 20... Kh7 {[%clk
0:02:05.5]} 21. Nf6+ {[%clk 0:01:45.3]} 21... Kg7 {[%clk 0:02:02.1]} 22. Nh5+
{[%clk 0:01:40.3]} 22... Kg8 {[%clk 0:01:43.2]} 23. Nf6+ {[%clk 0:01:40.7]}
23... Kg7 {[%clk 0:01:40.4]} 1/2-1/2

[Event "*** Titled Tuesday Blitz"]
[Site "Chess.com"]
[Date "2019.09.03"]
[Round "3"]
[White "FairChess_on_YouTube"]
[Black "Mr_Penings"]
[Result "1-0"]
[WhiteElo "2984"]
[BlackElo "2512"]
[TimeControl "180+2"]
[EndTime "15:34:26 PDT"]
[Termination "FairChess_on_YouTube won by resignation"]

1. Nf3 {[%clk 0:03:01.9]} 1... c5 {[%clk 0:03:01]} 2. g3 {[%clk 0:03:02.5]} 2...
g6 {[%clk 0:03:01.4]} 3. c3 {[%clk 0:03:03.3]} 3... Nf6 {[%clk 0:03:01.7]} 4. d4
{[%clk 0:03:04.4]} 4... Bg7 {[%clk 0:03:02.3]} 5. dxc5 {[%clk 0:03:03]} 5... O-O
{[%clk 0:03:02.3]} 6. Nbd2 {[%clk 0:03:00.7]} 6... a5 {[%clk 0:02:58.8]} 7. Nc4
{[%clk 0:02:55.8]} 7... Na6 {[%clk 0:02:54]} 8. Nb6 {[%clk 0:02:56.5]} 8... Ra7
{[%clk 0:02:39.2]} 9. Be3 {[%clk 0:02:56.8]} 9... Ng4 {[%clk 0:02:35.6]} 10. Qd2
{[%clk 0:02:57.6]} 10... Nc7 {[%clk 0:01:14.2]} 11. Bh3 {[%clk 0:02:54.6]} 11...
Nxe3 {[%clk 0:01:12.7]} 12. Qxe3 {[%clk 0:02:55.7]} 12... e6 {[%clk 0:00:49.5]}
13. O-O {[%clk 0:02:50.3]} 13... Ra6 {[%clk 0:00:45.5]} 14. Rfd1 {[%clk
0:02:47.7]} 14... Qe7 {[%clk 0:00:45.8]} 15. a4 {[%clk 0:02:39.2]} 15... Rd8
{[%clk 0:00:41.4]} 16. Rd6 {[%clk 0:02:33]} 16... Ne8 {[%clk 0:00:38.5]} 17. Rd3
{[%clk 0:02:18.2]} 17... d5 {[%clk 0:00:36.5]} 18. Nxd5 {[%clk 0:02:17.3]} 18...
Qf8 {[%clk 0:00:31.4]} 19. Nb6 {[%clk 0:02:17.8]} 1-0

[Event "*** Titled Tuesday Blitz"]
[Site "Chess.com"]
[Date "2019.09.03"]
[Round "3"]
[White "Colombiano07"]
[Black "Opening_Prep"]
[Result "0-1"]
[WhiteElo "2192"]
[BlackElo "2435"]
[TimeControl "180+2"]
[EndTime "15:34:31 PDT"]
[Termination "Opening_Prep won by resignation"]

1. d4 {[%clk 0:03:01.9]} 1... d5 {[%clk 0:02:59.5]} 2. Bf4 {[%clk 0:03:03.1]}
2... c5 {[%clk 0:02:59.3]} 3. c3 {[%clk 0:03:03.9]} 3... Nc6 {[%clk 0:03:00.1]}
4. e3 {[%clk 0:03:04.7]} 4... Bf5 {[%clk 0:03:00.4]} 5. Bd3 {[%clk 0:03:04.6]}
5... Bxd3 {[%clk 0:02:59.2]} 6. Qxd3 {[%clk 0:03:06.5]} 6... e6 {[%clk
0:03:00.6]} 7. Nd2 {[%clk 0:03:07.2]} 7... Nf6 {[%clk 0:03:01.1]} 8. Ngf3 {[%clk
0:03:07.6]} 8... Qb6 {[%clk 0:02:58.5]} 9. O-O {[%clk 0:03:07.5]} 9... Be7
{[%clk 0:02:54.9]} 10. dxc5 {[%clk 0:03:03.3]} 10... Qxc5 {[%clk 0:02:54.5]} 11.
e4 {[%clk 0:03:04.5]} 11... O-O {[%clk 0:02:50.6]} 12. Rfe1 {[%clk 0:02:59]}
12... Rfd8 {[%clk 0:02:38.5]} 13. e5 {[%clk 0:02:59.1]} 13... Nd7 {[%clk
0:02:37.8]} 14. Ng5 {[%clk 0:02:52.9]} 14... Nf8 {[%clk 0:02:29.3]} 15. Qf3
{[%clk 0:02:44.4]} 15... Bxg5 {[%clk 0:01:36.9]} 16. Bxg5 {[%clk 0:02:44.6]}
16... Rd7 {[%clk 0:01:36.9]} 17. Nb3 {[%clk 0:02:43.5]} 17... Qc4 {[%clk
0:01:27.3]} 18. Rad1 {[%clk 0:02:42.7]} 18... Ng6 {[%clk 0:01:23.1]} 19. g3
{[%clk 0:01:37.4]} 19... Ncxe5 {[%clk 0:01:17.5]} 20. Qe2 {[%clk 0:01:37.3]}
20... Qxe2 {[%clk 0:01:14.6]} 21. Rxe2 {[%clk 0:01:38.3]} 21... Nf3+ {[%clk
0:01:15.8]} 0-1

[Event "*** Titled Tuesday Blitz"]
[Site "Chess.com"]
[Date "2019.09.03"]
[Round "3"]
[White "platy3"]
[Black "Roman_Ovetchkin"]
[Result "0-1"]
[WhiteElo "2863"]
[BlackElo "2745"]
[TimeControl "180+2"]
[EndTime "15:34:33 PDT"]
[Termination "Roman_Ovetchkin won by resignation"]

1. e4 {[%clk 0:03:01.9]} 1... c6 {[%clk 0:03:00.3]} 2. d4 {[%clk 0:03:01.6]}
2... d5 {[%clk 0:03:02.2]} 3. e5 {[%clk 0:03:03.2]} 3... Bf5 {[%clk 0:03:02.5]}
4. Nf3 {[%clk 0:03:04.7]} 4... e6 {[%clk 0:03:03.8]} 5. Be2 {[%clk 0:03:06.2]}
5... Nd7 {[%clk 0:03:05.3]} 6. O-O {[%clk 0:03:07.4]} 6... h6 {[%clk 0:03:06.8]}
7. a4 {[%clk 0:03:08.8]} 7... a5 {[%clk 0:03:06.5]} 8. c3 {[%clk 0:03:05.2]}
8... Ne7 {[%clk 0:03:05.6]} 9. Nbd2 {[%clk 0:03:06]} 9... g5 {[%clk 0:02:57.5]}
10. Nb3 {[%clk 0:03:02.9]} 10... Ng6 {[%clk 0:02:51.5]} 11. Ne1 {[%clk 0:03:01]}
11... Nf4 {[%clk 0:02:46.5]} 12. Bg4 {[%clk 0:02:53]} 12... Bxg4 {[%clk
0:02:40.7]} 13. Qxg4 {[%clk 0:02:52.8]} 13... Ng6 {[%clk 0:02:42.4]} 14. f4
{[%clk 0:02:47.1]} 14... gxf4 {[%clk 0:02:34.7]} 15. Bxf4 {[%clk 0:02:46.1]}
15... Qb6 {[%clk 0:02:35.7]} 16. Nd2 {[%clk 0:02:34.3]} 16... Qxb2 {[%clk
0:02:24.4]} 17. Rb1 {[%clk 0:02:24.8]} 17... Qxc3 {[%clk 0:02:25.3]} 18. Rxb7
{[%clk 0:01:58.3]} 18... Qxd4+ {[%clk 0:02:25]} 19. Kh1 {[%clk 0:01:58.1]} 19...
Ndxe5 {[%clk 0:02:15.4]} 20. Qg3 {[%clk 0:01:32.3]} 20... Nxf4 {[%clk
0:02:11.2]} 21. Nef3 {[%clk 0:01:30.7]} 21... Nxf3 {[%clk 0:02:04]} 22. Nxf3
{[%clk 0:01:31.4]} 22... Qd3 {[%clk 0:01:58.6]} 23. Re1 {[%clk 0:01:30.4]} 23...
Bd6 {[%clk 0:01:54.2]} 24. Qg7 {[%clk 0:01:25.9]} 24... Rf8 {[%clk 0:01:52.5]}
0-1

[Event "*** Titled Tuesday Blitz"]
[Site "Chess.com"]
[Date "2019.09.03"]
[Round "3"]
[White "nubair1198"]
[Black "Jahonas"]
[Result "1-0"]
[WhiteElo "2653"]
[BlackElo "2409"]
[TimeControl "180+2"]
[EndTime "15:34:53 PDT"]
[Termination "nubair1198 won by resignation"]

1. d4 {[%clk 0:03:01.9]} 1... Nf6 {[%clk 0:03:00.2]} 2. c4 {[%clk 0:03:03.4]}
2... g6 {[%clk 0:03:01.3]} 3. Nc3 {[%clk 0:03:04.8]} 3... d5 {[%clk 0:03:01.7]}
4. Nf3 {[%clk 0:03:05.5]} 4... Bg7 {[%clk 0:03:02.2]} 5. h4 {[%clk 0:03:02.5]}
5... h5 {[%clk 0:03:02.5]} 6. Bg5 {[%clk 0:03:02.5]} 6... dxc4 {[%clk
0:03:02.4]} 7. e4 {[%clk 0:03:03.6]} 7... c6 {[%clk 0:03:02.8]} 8. Bxc4 {[%clk
0:03:04]} 8... O-O {[%clk 0:02:50.2]} 9. Ne5 {[%clk 0:02:44.4]} 9... b5 {[%clk
0:02:43.8]} 10. Bb3 {[%clk 0:02:30.2]} 10... b4 {[%clk 0:02:39.2]} 11. Bxf7+
{[%clk 0:02:08.5]} 11... Rxf7 {[%clk 0:02:37.1]} 12. Qb3 {[%clk 0:02:09.5]}
12... Nd5 {[%clk 0:02:19.8]} 13. Nxf7 {[%clk 0:02:08]} 13... Kxf7 {[%clk
0:02:19.3]} 14. Ne2 {[%clk 0:02:06.8]} 14... Be6 {[%clk 0:02:01.8]} 15. exd5
{[%clk 0:02:05.9]} 15... Bxd5 {[%clk 0:02:03]} 16. Qxb4 {[%clk 0:01:58.7]} 16...
Nd7 {[%clk 0:02:00.6]} 17. O-O {[%clk 0:01:54.2]} 17... Rb8 {[%clk 0:02:00.5]}
18. Qa3 {[%clk 0:01:48]} 18... Nb6 {[%clk 0:01:57.1]} 19. b3 {[%clk 0:01:43.6]}
19... Qd7 {[%clk 0:01:46.3]} 20. Rfe1 {[%clk 0:01:44.4]} 20... Qg4 {[%clk
0:01:44.4]} 21. Nf4 {[%clk 0:01:44.6]} 21... Rb7 {[%clk 0:01:11.8]} 22. Rxe7+
{[%clk 0:01:43.2]} 22... Rxe7 {[%clk 0:01:10.6]} 23. Qxe7+ {[%clk 0:01:45.1]}
23... Kg8 {[%clk 0:01:11.5]} 24. Qe8+ {[%clk 0:01:44.6]} 1-0

[Event "*** Titled Tuesday Blitz"]
[Site "Chess.com"]
[Date "2019.09.03"]
[Round "3"]
[White "a_kandil"]
[Black "Niclox"]
[Result "0-1"]
[WhiteElo "2404"]
[BlackElo "2638"]
[TimeControl "180+2"]
[EndTime "15:35:13 PDT"]
[Termination "Niclox won by resignation"]

1. e4 {[%clk 0:03:01.9]} 1... c5 {[%clk 0:02:56.3]} 2. Nf3 {[%clk 0:03:03.3]}
2... d6 {[%clk 0:02:56.2]} 3. d4 {[%clk 0:02:59.9]} 3... cxd4 {[%clk 0:02:56.9]}
4. Nxd4 {[%clk 0:03:01.8]} 4... Nf6 {[%clk 0:02:57.5]} 5. Nc3 {[%clk 0:03:01.3]}
5... g6 {[%clk 0:02:58.7]} 6. Be3 {[%clk 0:02:56.8]} 6... Bg7 {[%clk 0:02:59.3]}
7. f3 {[%clk 0:02:57.6]} 7... O-O {[%clk 0:02:58.9]} 8. h4 {[%clk 0:02:51.4]}
8... Nc6 {[%clk 0:02:56]} 9. Qd2 {[%clk 0:02:50.3]} 9... Nxd4 {[%clk 0:02:51.9]}
10. Bxd4 {[%clk 0:02:50.8]} 10... Qa5 {[%clk 0:02:51.8]} 11. O-O-O {[%clk
0:02:47.8]} 11... Be6 {[%clk 0:02:52.4]} 12. Kb1 {[%clk 0:02:48.6]} 12... Rfc8
{[%clk 0:02:50.8]} 13. g4 {[%clk 0:02:28.6]} 13... Rxc3 {[%clk 0:02:45.7]} 14.
Qxc3 {[%clk 0:02:27.6]} 14... Qxa2+ {[%clk 0:02:44.4]} 15. Kc1 {[%clk 0:02:29]}
15... Bxg4 {[%clk 0:02:40.5]} 16. Bg2 {[%clk 0:01:40.6]} 16... Rc8 {[%clk
0:02:35.3]} 17. Qe3 {[%clk 0:01:31.3]} 17... e5 {[%clk 0:02:27.1]} 18. Bc3
{[%clk 0:01:29.4]} 18... d5 {[%clk 0:02:25.6]} 19. Bxe5 {[%clk 0:01:18.9]} 19...
Nxe4 {[%clk 0:02:22.8]} 20. fxe4 {[%clk 0:00:40.4]} 20... Bxe5 {[%clk
0:02:19.9]} 21. Rd4 {[%clk 0:00:40]} 21... Qa1+ {[%clk 0:02:13.1]} 22. Kd2
{[%clk 0:00:40.9]} 22... Qxb2 {[%clk 0:02:15]} 23. Rxd5 {[%clk 0:00:35.4]} 23...
Rxc2+ {[%clk 0:02:11.6]} 24. Ke1 {[%clk 0:00:35.4]} 24... Qb1+ {[%clk
0:02:11.8]} 0-1

[Event "*** Titled Tuesday Blitz"]
[Site "Chess.com"]
[Date "2019.09.03"]
[Round "3"]
[White "Malev212"]
[Black "dawnrule"]
[Result "1-0"]
[WhiteElo "2634"]
[BlackElo "2399"]
[TimeControl "180+2"]
[EndTime "15:35:15 PDT"]
[Termination "Malev212 won by resignation"]

1. e4 {[%clk 0:03:01.9]} 1... e6 {[%clk 0:02:57.2]} 2. d4 {[%clk 0:03:01.2]}
2... d5 {[%clk 0:02:58]} 3. Nc3 {[%clk 0:03:02]} 3... Bb4 {[%clk 0:02:58.1]} 4.
Bd2 {[%clk 0:02:58.3]} 4... dxe4 {[%clk 0:02:55.8]} 5. Qg4 {[%clk 0:02:58.5]}
5... Nf6 {[%clk 0:02:54]} 6. Qxg7 {[%clk 0:02:54.7]} 6... Rg8 {[%clk 0:02:55.1]}
7. Qh6 {[%clk 0:02:53.3]} 7... Nc6 {[%clk 0:02:47.1]} 8. O-O-O {[%clk
0:02:48.2]} 8... Rg6 {[%clk 0:02:41.5]} 9. Qh4 {[%clk 0:02:44.6]} 9... Ng4
{[%clk 0:02:12.4]} 10. Qxd8+ {[%clk 0:02:07.6]} 10... Kxd8 {[%clk 0:02:05.6]}
11. Nxe4 {[%clk 0:02:04.3]} 11... f5 {[%clk 0:01:52]} 12. h3 {[%clk 0:02:03.3]}
12... Bxd2+ {[%clk 0:01:34.1]} 13. Rxd2 {[%clk 0:02:03.1]} 13... Nh6 {[%clk
0:00:52.2]} 14. Nc5 {[%clk 0:02:00.6]} 14... b6 {[%clk 0:00:52]} 15. Nd3 {[%clk
0:01:54]} 15... Ke7 {[%clk 0:00:50.8]} 16. Nf3 {[%clk 0:01:54.8]} 16... Bb7
{[%clk 0:00:50.2]} 17. Nf4 {[%clk 0:01:52.6]} 17... Rg7 {[%clk 0:00:47.5]} 18.
Bc4 {[%clk 0:01:52.2]} 18... Nd8 {[%clk 0:00:40.1]} 19. Re1 {[%clk 0:01:51.8]}
19... Bxf3 {[%clk 0:00:40.2]} 20. gxf3 {[%clk 0:01:53.7]} 20... Nhf7 {[%clk
0:00:32.3]} 21. Nxe6 {[%clk 0:01:51.2]} 21... Nxe6 {[%clk 0:00:33.1]} 22. Rxe6+
{[%clk 0:01:49.8]} 22... Kf8 {[%clk 0:00:33.6]} 23. Rf6 {[%clk 0:01:43.7]} 1-0